[Event "Titled Tuesday Blitz April 05 Late 2022"]
[White "Ibarra Jerez, Jose Carlos"]
[Black "Melkumyan, Hrant"]
[WhiteFideId "2226332"]
[BlackFideId "13302485"]
[WhiteElo "2626"]
[BlackElo "2604"]
[Result "0-1"]
[Round "09"]
[TimeControl "180+1"]
[Date "2022.04.05"]
[WhiteClock "0:00:03"]
[BlackClock "0:00:08"]

1. e4 {[%clk 0:03:00]}  e6 {[%clk 0:02:55]} 2. d4 {[%clk 0:02:59]}  d5 {[%clk 0:02:56]} 3. Nc3 {[%clk 0:02:58]}  Bb4 {[%clk 0:02:56]} 4. Ne2 {[%clk 0:02:54]}  dxe4 {[%clk 0:02:52]} 5. a3 {[%clk 0:02:53]}  Be7 {[%clk 0:02:51]} 6. Nxe4 {[%clk 0:02:53]}  Nd7 {[%clk 0:02:48]} 7. g3 {[%clk 0:02:47]}  Ngf6 {[%clk 0:02:48]} 8. Nxf6+ {[%clk 0:02:46]}  Bxf6 {[%clk 0:02:40]} 9. Bg2 {[%clk 0:02:46]}  O-O {[%clk 0:02:40]} 10. O-O {[%clk 0:02:46]}  e5 {[%clk 0:02:33]} 11. Be3 {[%clk 0:02:42]}  exd4 {[%clk 0:02:29]} 12. Bxd4 {[%clk 0:02:27]}  Ne5 {[%clk 0:02:29]} 13. h3 {[%clk 0:01:53]}  c6 {[%clk 0:02:03]} 14. c3 {[%clk 0:01:42]}  Re8 {[%clk 0:01:59]} 15. Nf4 {[%clk 0:01:42]}  g6 {[%clk 0:01:53]} 16. Re1 {[%clk 0:01:40]}  h5 {[%clk 0:01:44]} 17. Qb3 {[%clk 0:01:11]}  Kg7 {[%clk 0:01:33]} 18. Rad1 {[%clk 0:01:08]}  Qc7 {[%clk 0:01:33]} 19. Nd3 {[%clk 0:01:01]}  Be6 {[%clk 0:01:29]} 20. Qb4 {[%clk 0:00:49]}  Nxd3 {[%clk 0:01:09]} 21. Bxf6+ {[%clk 0:00:49]}  Kxf6 {[%clk 0:01:10]} 22. Rxd3 {[%clk 0:00:41]}  Kg7 {[%clk 0:01:10]} 23. Qd4+ {[%clk 0:00:37]}  Kh7 {[%clk 0:01:06]} 24. Rde3 {[%clk 0:00:35]}  Rad8 {[%clk 0:01:05]} 25. Qxa7 {[%clk 0:00:29]}  Rd2 {[%clk 0:01:06]} 26. b4 {[%clk 0:00:28]}  h4 {[%clk 0:00:59]} 27. Qc5 {[%clk 0:00:24]}  hxg3 {[%clk 0:00:57]} 28. Rxg3 {[%clk 0:00:24]}  Qf4 {[%clk 0:00:51]} 29. Qe3 {[%clk 0:00:23]}  Qxe3 {[%clk 0:00:45]} 30. Rgxe3 {[%clk 0:00:24]}  Red8 {[%clk 0:00:45]} 31. a4 {[%clk 0:00:21]}  Ra2 {[%clk 0:00:44]} 32. a5 {[%clk 0:00:21]}  Rdd2 {[%clk 0:00:45]} 33. Rf3 {[%clk 0:00:20]}  Kg7 {[%clk 0:00:45]} 34. h4 {[%clk 0:00:19]}  Bg4 {[%clk 0:00:40]} 35. Rf4 {[%clk 0:00:19]}  f5 {[%clk 0:00:41]} 36. Re7+ {[%clk 0:00:11]}  Kf6 {[%clk 0:00:41]} 37. Rxb7 {[%clk 0:00:11]}  Ke5 {[%clk 0:00:37]} 38. Rd4 {[%clk 0:00:10]}  Rxf2 {[%clk 0:00:38]} 39. Bf1 {[%clk 0:00:08]}  Rf3 {[%clk 0:00:30]} 40. Re7+ {[%clk 0:00:09]}  Kf6 {[%clk 0:00:30]} 41. Re2 {[%clk 0:00:07]}  Rg3+ {[%clk 0:00:26]} 42. Rg2 {[%clk 0:00:08]}  Raxg2+ {[%clk 0:00:14]} 43. Bxg2 {[%clk 0:00:09]}  Rxc3 {[%clk 0:00:15]} 44. Rd6+ {[%clk 0:00:08]}  Ke5 {[%clk 0:00:14]} 45. Rxc6 {[%clk 0:00:09]}  Ra3 {[%clk 0:00:14]} 46. Bf1 {[%clk 0:00:06]}  Kf4 {[%clk 0:00:13]} 47. Rc2 {[%clk 0:00:05]}  Bf3 {[%clk 0:00:12]} 48. Rb2 {[%clk 0:00:05]}  Kg3 {[%clk 0:00:10]} 49. a6 {[%clk 0:00:05]}  f4 {[%clk 0:00:09]} 50. b5 {[%clk 0:00:05]}  Be4 {[%clk 0:00:04]} 51. b6 {[%clk 0:00:06]}  f3 {[%clk 0:00:04]} 52. b7 {[%clk 0:00:06]}  Rb3 {[%clk 0:00:02]} 53. Ra2 {[%clk 0:00:05]}  Kf4 {[%clk 0:00:01]} 54. a7 {[%clk 0:00:03]}  Bxb7 {[%clk 0:00:01]} 55. a8=Q {[%clk 0:00:04]}  Bxa8 {[%clk 0:00:02]} 56. Rxa8 {[%clk 0:00:04]}  Kg3 {[%clk 0:00:03]} 57. Ra2 {[%clk 0:00:05]}  Kxh4 {[%clk 0:00:03]} 58. Kf2 {[%clk 0:00:05]}  g5 {[%clk 0:00:03]} 59. Rd2 {[%clk 0:00:04]}  g4 {[%clk 0:00:04]} 60. Rd4 {[%clk 0:00:04]}  Rb2+ {[%clk 0:00:04]} 61. Ke3 {[%clk 0:00:04]}  Rb3+ {[%clk 0:00:04]} 62. Bd3 {[%clk 0:00:04]}  Kg3 {[%clk 0:00:03]} 63. Rd8 {[%clk 0:00:04]}  f2 {[%clk 0:00:04]} 64. Rf8 {[%clk 0:00:04]}  Rb7 {[%clk 0:00:03]} 65. Be4 {[%clk 0:00:03]}  Re7 {[%clk 0:00:03]} 66. Kd4 {[%clk 0:00:03]}  Ra7 {[%clk 0:00:03]} 67. Ke3 {[%clk 0:00:03]}  Ra4 {[%clk 0:00:03]} 68. Bd3 {[%clk 0:00:04]}  Ra3 {[%clk 0:00:04]} 69. Ke2 {[%clk 0:00:04]}  Ra2+ {[%clk 0:00:04]} 70. Ke3 {[%clk 0:00:04]}  Ra1 {[%clk 0:00:04]} 71. Be2 {[%clk 0:00:04]}  Ra3+ {[%clk 0:00:03]} 72. Bd3 {[%clk 0:00:04]}  Rb3 {[%clk 0:00:04]} 73. Ke2 {[%clk 0:00:04]}  Rb2+ {[%clk 0:00:03]} 74. Ke3 {[%clk 0:00:05]}  Kg2 {[%clk 0:00:04]} 75. Be4+ {[%clk 0:00:05]}  Kg1 {[%clk 0:00:04]} 76. Bd3 {[%clk 0:00:05]}  g3 {[%clk 0:00:04]} 77. Rf3 {[%clk 0:00:03]}  g2 {[%clk 0:00:04]} 78. Rg3 {[%clk 0:00:03]}  f1=Q {[%clk 0:00:04]} 79. Bxf1 {[%clk 0:00:03]}  Kxf1 {[%clk 0:00:05]} 80. Rf3+ {[%clk 0:00:02]}  Ke1 {[%clk 0:00:06]} 81. Rg3 {[%clk 0:00:02]}  Rb3+ {[%clk 0:00:07]} 82. Kf4 {[%clk 0:00:02]}  Rxg3 {[%clk 0:00:07]} 83. Kxg3 {[%clk 0:00:03]}  g1=Q+ {[%clk 0:00:08]} 0-1


[Site "https://www.chess.com"]

[Event "Titled Tuesday Blitz April 05 Late 2022"]
[White "Ilyasli, Ughur"]
[Black "Adewumi, Tanitoluwa"]
[WhiteFideId "13416197"]
[BlackFideId "30966396"]
[WhiteElo "2415"]
[BlackElo "2545"]
[Result "1-0"]
[Round "09"]
[TimeControl "180+1"]
[Date "2022.04.06"]
[WhiteClock "0:00:10"]
[BlackClock "0:00:04"]

1. d4 {[%clk 0:03:00]}  Nf6 {[%clk 0:02:58]} 2. c4 {[%clk 0:03:01]}  c5 {[%clk 0:02:57]} 3. d5 {[%clk 0:03:01]}  g6 {[%clk 0:02:57]} 4. Nc3 {[%clk 0:03:00]}  Bg7 {[%clk 0:02:57]} 5. e4 {[%clk 0:03:00]}  d6 {[%clk 0:02:56]} 6. Nge2 {[%clk 0:03:01]}  O-O {[%clk 0:02:56]} 7. Ng3 {[%clk 0:03:01]}  e6 {[%clk 0:02:56]} 8. Be2 {[%clk 0:02:59]}  exd5 {[%clk 0:02:57]} 9. exd5 {[%clk 0:02:55]}  a6 {[%clk 0:02:48]} 10. O-O {[%clk 0:02:53]}  h5 {[%clk 0:02:42]} 11. Bg5 {[%clk 0:02:47]}  Qb6 {[%clk 0:02:24]} 12. Qd2 {[%clk 0:02:45]}  Ng4 {[%clk 0:02:17]} 13. h3 {[%clk 0:02:32]}  Ne5 {[%clk 0:02:03]} 14. f4 {[%clk 0:02:29]}  Ned7 {[%clk 0:02:02]} 15. f5 {[%clk 0:02:22]}  Ne5 {[%clk 0:01:52]} 16. f6 {[%clk 0:02:16]}  Bh8 {[%clk 0:01:51]} 17. Rae1 {[%clk 0:01:37]}  Qa5 {[%clk 0:01:37]} 18. Bxh5 {[%clk 0:01:15]}  gxh5 {[%clk 0:01:30]} 19. Bh6 {[%clk 0:01:09]}  Nbd7 {[%clk 0:01:14]} 20. Bxf8 {[%clk 0:00:59]}  Nxf8 {[%clk 0:01:12]} 21. Nxh5 {[%clk 0:00:53]}  Bd7 {[%clk 0:01:05]} 22. Qh6 {[%clk 0:00:45]}  Nfg6 {[%clk 0:00:59]} 23. Re4 {[%clk 0:00:38]}  Qd8 {[%clk 0:00:41]} 24. Ne2 {[%clk 0:00:24]}  Qf8 {[%clk 0:00:39]} 25. Qg5 {[%clk 0:00:23]}  Kh7 {[%clk 0:00:39]} 26. Nef4 {[%clk 0:00:17]}  Qh6 {[%clk 0:00:38]} 27. Qxh6+ {[%clk 0:00:16]}  Kxh6 {[%clk 0:00:38]} 28. g4 {[%clk 0:00:14]}  Rg8 {[%clk 0:00:36]} 29. Kf2 {[%clk 0:00:13]}  Nxf4 {[%clk 0:00:27]} 30. Rxf4 {[%clk 0:00:13]}  Nd3+ {[%clk 0:00:24]} 31. Ke3 {[%clk 0:00:13]}  Nxf4 {[%clk 0:00:25]} 32. Kxf4 {[%clk 0:00:13]}  Re8 {[%clk 0:00:22]} 33. h4 {[%clk 0:00:11]}  b5 {[%clk 0:00:18]} 34. cxb5 {[%clk 0:00:10]}  axb5 {[%clk 0:00:19]} 35. Rf2 {[%clk 0:00:07]}  b4 {[%clk 0:00:19]} 36. a3 {[%clk 0:00:07]}  bxa3 {[%clk 0:00:19]} 37. bxa3 {[%clk 0:00:07]}  c4 {[%clk 0:00:20]} 38. Rc2 {[%clk 0:00:07]}  Bb5 {[%clk 0:00:13]} 39. Ng3 {[%clk 0:00:07]}  Bxf6 {[%clk 0:00:06]} 40. g5+ {[%clk 0:00:07]}  Bxg5+ {[%clk 0:00:07]} 41. hxg5+ {[%clk 0:00:08]}  Kg6 {[%clk 0:00:08]} 42. Ne4 {[%clk 0:00:08]}  Re5 {[%clk 0:00:05]} 43. Nxd6 {[%clk 0:00:07]}  Rxd5 {[%clk 0:00:05]} 44. Nxb5 {[%clk 0:00:07]}  Rxb5 {[%clk 0:00:05]} 45. Rxc4 {[%clk 0:00:08]}  Rf5+ {[%clk 0:00:05]} 46. Ke4 {[%clk 0:00:07]}  Rxg5 {[%clk 0:00:05]} 47. Rc6+ {[%clk 0:00:07]}  f6 {[%clk 0:00:06]} 48. Ra6 {[%clk 0:00:08]}  Rg4+ {[%clk 0:00:06]} 49. Kd5 {[%clk 0:00:08]}  Rg1 {[%clk 0:00:04]} 50. a4 {[%clk 0:00:09]}  Ra1 {[%clk 0:00:05]} 51. a5 {[%clk 0:00:09]}  Kg5 {[%clk 0:00:06]} 52. Ra8 {[%clk 0:00:09]}  f5 {[%clk 0:00:06]} 53. a6 {[%clk 0:00:10]}  Rd1+ {[%clk 0:00:02]} 54. Ke6 {[%clk 0:00:09]}  Re1+ {[%clk 0:00:03]} 55. Kd5 {[%clk 0:00:09]}  Rd1+ {[%clk 0:00:03]} 56. Kc5 {[%clk 0:00:10]}  Rc1+ {[%clk 0:00:03]} 57. Kd4 {[%clk 0:00:10]}  Rd1+ {[%clk 0:00:04]} 58. Ke3 {[%clk 0:00:10]}  f4+ {[%clk 0:00:03]} 59. Kf3 {[%clk 0:00:10]}  Rd3+ {[%clk 0:00:03]} 60. Kf2 {[%clk 0:00:10]}  Kg4 {[%clk 0:00:03]} 61. a7 {[%clk 0:00:10]}  Rd2+ {[%clk 0:00:03]} 62. Ke1 {[%clk 0:00:10]}  Ra2 {[%clk 0:00:02]} 63. Rg8+ {[%clk 0:00:10]}  Kf3 {[%clk 0:00:03]} 64. a8=Q+ {[%clk 0:00:11]}  Rxa8 {[%clk 0:00:03]} 65. Rxa8 {[%clk 0:00:11]}  Kg2 {[%clk 0:00:04]} 66. Rf8 {[%clk 0:00:10]}  f3 {[%clk 0:00:04]} 67. Rg8+ {[%clk 0:00:09]}  Kh3 {[%clk 0:00:04]} 68. Kf2 {[%clk 0:00:10]} 1-0


[Site "https://www.chess.com"]

[Event "Titled Tuesday Blitz April 05 Late 2022"]
[White "Iskusnyh, Sergei"]
[Black "Papasimakopoulos, Alexandros"]
[WhiteFideId "4120027"]
[BlackFideId "4244125"]
[WhiteElo "2492"]
[BlackElo "2340"]
[Result "0-1"]
[Round "09"]
[TimeControl "180+1"]
[Date "2022.04.05"]
[WhiteClock "0:00:07"]
[BlackClock "0:00:45"]

1. d4 {[%clk 0:03:00]}  e6 {[%clk 0:02:59]} 2. c4 {[%clk 0:03:00]}  Nf6 {[%clk 0:03:00]} 3. g3 {[%clk 0:03:00]}  Bb4+ {[%clk 0:03:00]} 4. Bd2 {[%clk 0:03:00]}  Be7 {[%clk 0:03:00]} 5. Bg2 {[%clk 0:03:00]}  d5 {[%clk 0:03:01]} 6. Nf3 {[%clk 0:03:00]}  O-O {[%clk 0:03:02]} 7. O-O {[%clk 0:03:01]}  c6 {[%clk 0:03:03]} 8. Qc2 {[%clk 0:03:01]}  Ne4 {[%clk 0:03:03]} 9. Bf4 {[%clk 0:02:55]}  Nd7 {[%clk 0:03:04]} 10. Nc3 {[%clk 0:02:54]}  f5 {[%clk 0:03:05]} 11. Rab1 {[%clk 0:02:49]}  g5 {[%clk 0:03:04]} 12. Bc1 {[%clk 0:02:48]}  g4 {[%clk 0:03:05]} 13. Ne1 {[%clk 0:02:44]}  Bf6 {[%clk 0:03:05]} 14. e3 {[%clk 0:02:42]}  h5 {[%clk 0:03:04]} 15. Nd3 {[%clk 0:02:38]}  h4 {[%clk 0:03:04]} 16. Nf4 {[%clk 0:02:36]}  Qe8 {[%clk 0:02:56]} 17. b4 {[%clk 0:02:34]}  a6 {[%clk 0:02:45]} 18. a4 {[%clk 0:02:30]}  Nb6 {[%clk 0:02:44]} 19. cxd5 {[%clk 0:02:22]}  exd5 {[%clk 0:02:45]} 20. b5 {[%clk 0:02:22]}  axb5 {[%clk 0:02:44]} 21. axb5 {[%clk 0:02:22]}  Nc4 {[%clk 0:02:45]} 22. bxc6 {[%clk 0:02:20]}  bxc6 {[%clk 0:02:46]} 23. Ncxd5 {[%clk 0:01:58]}  cxd5 {[%clk 0:02:44]} 24. Nxd5 {[%clk 0:01:58]}  Ncd6 {[%clk 0:02:22]} 25. Nc7 {[%clk 0:01:57]}  Qa4 {[%clk 0:02:22]} 26. Qb2 {[%clk 0:01:23]}  Ra7 {[%clk 0:02:19]} 27. Nd5 {[%clk 0:01:22]}  Bg7 {[%clk 0:02:13]} 28. Nb6 {[%clk 0:01:12]}  Qa5 {[%clk 0:01:57]} 29. Qc2 {[%clk 0:01:06]}  Be6 {[%clk 0:01:53]} 30. Qc6 {[%clk 0:00:54]}  Bf7 {[%clk 0:01:29]} 31. Bb2 {[%clk 0:00:42]}  h3 {[%clk 0:01:24]} 32. Bxe4 {[%clk 0:00:36]}  Nxe4 {[%clk 0:01:22]} 33. Ra1 {[%clk 0:00:37]}  Qb4 {[%clk 0:01:05]} 34. Rxa7 {[%clk 0:00:35]}  Qxb2 {[%clk 0:01:05]} 35. Nd7 {[%clk 0:00:35]}  Qe2 {[%clk 0:01:00]} 36. Ne5 {[%clk 0:00:10]}  Bxe5 {[%clk 0:00:57]} 37. Rxf7 {[%clk 0:00:09]}  Kxf7 {[%clk 0:00:49]} 38. dxe5 {[%clk 0:00:09]}  Qf3 {[%clk 0:00:46]} 39. Qd7+ {[%clk 0:00:07]}  Kg6 {[%clk 0:00:44]} 40. Qe6+ {[%clk 0:00:07]}  Kg7 {[%clk 0:00:45]} 41. Qe7+ {[%clk 0:00:07]}  Rf7 {[%clk 0:00:45]} 0-1


[Site "https://www.chess.com"]

[Event "Titled Tuesday Blitz April 05 Late 2022"]
[White "Jaferian, Koosha"]
[Black "Estrada Nieto, Julian"]
[WhiteFideId "12507440"]
[BlackFideId "5101018"]
[WhiteElo "2553"]
[BlackElo "2375"]
[Result "0-1"]
[Round "09"]
[TimeControl "180+1"]
[Date "2022.04.06"]
[WhiteClock "0:00:59"]
[BlackClock "0:00:06"]

1. Nf3 {[%clk 0:03:00]}  d5 {[%clk 0:02:21]} 2. b3 {[%clk 0:03:01]}  Nf6 {[%clk 0:02:19]} 3. Bb2 {[%clk 0:03:00]}  Bg4 {[%clk 0:02:19]} 4. e3 {[%clk 0:03:00]}  Nbd7 {[%clk 0:02:19]} 5. Be2 {[%clk 0:03:01]}  e6 {[%clk 0:02:20]} 6. d4 {[%clk 0:03:01]}  Bd6 {[%clk 0:02:20]} 7. O-O {[%clk 0:03:02]}  O-O {[%clk 0:02:19]} 8. c4 {[%clk 0:03:02]}  c6 {[%clk 0:02:19]} 9. Nbd2 {[%clk 0:03:02]}  a5 {[%clk 0:02:20]} 10. Ne5 {[%clk 0:03:01]}  Bf5 {[%clk 0:02:16]} 11. f4 {[%clk 0:02:56]}  Bb4 {[%clk 0:02:14]} 12. a3 {[%clk 0:02:49]}  Bxd2 {[%clk 0:02:11]} 13. Qxd2 {[%clk 0:02:50]}  Ne4 {[%clk 0:02:09]} 14. Qe1 {[%clk 0:02:50]}  Nxe5 {[%clk 0:01:52]} 15. fxe5 {[%clk 0:02:51]}  f6 {[%clk 0:01:47]} 16. exf6 {[%clk 0:02:47]}  Qxf6 {[%clk 0:01:41]} 17. Bf3 {[%clk 0:02:25]}  Qg6 {[%clk 0:01:38]} 18. Qe2 {[%clk 0:02:18]}  a4 {[%clk 0:01:18]} 19. Kh1 {[%clk 0:01:52]}  axb3 {[%clk 0:01:12]} 20. g4 {[%clk 0:01:52]}  Qh6 {[%clk 0:01:08]} 21. Kg2 {[%clk 0:01:43]}  Bg6 {[%clk 0:00:49]} 22. Rae1 {[%clk 0:01:30]}  Ng5 {[%clk 0:00:38]} 23. Kg1 {[%clk 0:01:20]}  Bd3 {[%clk 0:00:28]} 24. Qxd3 {[%clk 0:01:12]}  Nxf3+ {[%clk 0:00:27]} 25. Rxf3 {[%clk 0:01:12]}  Rxf3 {[%clk 0:00:26]} 26. Qxb3 {[%clk 0:01:13]}  Qg5 {[%clk 0:00:17]} 27. Re2 {[%clk 0:01:14]}  Raf8 {[%clk 0:00:12]} 28. Qd1 {[%clk 0:01:02]}  Qxg4+ {[%clk 0:00:12]} 29. Rg2 {[%clk 0:01:03]}  Rf1+ {[%clk 0:00:12]} 30. Qxf1 {[%clk 0:01:03]}  Rxf1+ {[%clk 0:00:11]} 31. Kxf1 {[%clk 0:01:04]}  Qd1+ {[%clk 0:00:12]} 32. Kf2 {[%clk 0:01:05]}  Qc2+ {[%clk 0:00:12]} 33. Kf3 {[%clk 0:01:06]}  Qe4+ {[%clk 0:00:11]} 34. Kf2 {[%clk 0:01:05]}  dxc4 {[%clk 0:00:12]} 35. Kf1 {[%clk 0:00:55]}  c3 {[%clk 0:00:10]} 36. Bxc3 {[%clk 0:00:55]}  Qd3+ {[%clk 0:00:10]} 37. Re2 {[%clk 0:00:53]}  Qxc3 {[%clk 0:00:10]} 38. Kf2 {[%clk 0:00:54]}  Qxa3 {[%clk 0:00:10]} 39. Rd2 {[%clk 0:00:55]}  Qc3 {[%clk 0:00:09]} 40. Ke2 {[%clk 0:00:56]}  b5 {[%clk 0:00:09]} 41. Rd3 {[%clk 0:00:56]}  Qc4 {[%clk 0:00:09]} 42. Kd2 {[%clk 0:00:56]}  b4 {[%clk 0:00:09]} 43. h4 {[%clk 0:00:57]}  b3 {[%clk 0:00:09]} 44. Rc3 {[%clk 0:00:57]}  Qb4 {[%clk 0:00:09]} 45. Kd3 {[%clk 0:00:56]}  b2 {[%clk 0:00:08]} 46. Rxc6 {[%clk 0:00:57]}  b1=Q+ {[%clk 0:00:08]} 47. Ke2 {[%clk 0:00:58]}  h6 {[%clk 0:00:07]} 48. Rxe6 {[%clk 0:00:58]}  Q4b2+ {[%clk 0:00:07]} 49. Kf3 {[%clk 0:00:58]}  Qf5+ {[%clk 0:00:06]} 50. Kg3 {[%clk 0:00:59]}  Qxe6 {[%clk 0:00:06]} 51. h5 {[%clk 0:00:59]}  Qe4 {[%clk 0:00:06]} 0-1


[Site "https://www.chess.com"]

[Event "Titled Tuesday Blitz April 05 Late 2022"]
[White "Kamsky, Gata"]
[Black "Hakobyan, Aram"]
[WhiteFideId "2000024"]
[BlackFideId "13306677"]
[WhiteElo "2645"]
[BlackElo "2557"]
[Result "0-1"]
[Round "09"]
[TimeControl "180+1"]
[Date "2022.04.05"]
[WhiteClock "0:00:02"]
[BlackClock "0:00:04"]

1. e4 {[%clk 0:03:00]}  Nc6 {[%clk 0:02:29]} 2. Nf3 {[%clk 0:02:56]}  g6 {[%clk 0:02:26]} 3. d4 {[%clk 0:02:54]}  Bg7 {[%clk 0:02:27]} 4. Bc4 {[%clk 0:02:45]}  d6 {[%clk 0:02:24]} 5. h3 {[%clk 0:02:38]}  Nf6 {[%clk 0:02:24]} 6. Qe2 {[%clk 0:02:27]}  O-O {[%clk 0:02:24]} 7. O-O {[%clk 0:02:26]}  d5 {[%clk 0:02:13]} 8. exd5 {[%clk 0:02:25]}  Nxd5 {[%clk 0:02:14]} 9. c3 {[%clk 0:02:22]}  Re8 {[%clk 0:02:11]} 10. Rd1 {[%clk 0:02:19]}  h6 {[%clk 0:02:02]} 11. a4 {[%clk 0:02:12]}  a6 {[%clk 0:01:59]} 12. Na3 {[%clk 0:01:59]}  b6 {[%clk 0:01:56]} 13. Qe4 {[%clk 0:01:53]}  e6 {[%clk 0:01:56]} 14. Bf1 {[%clk 0:01:14]}  Bb7 {[%clk 0:01:55]} 15. Nc4 {[%clk 0:01:13]}  Nce7 {[%clk 0:01:30]} 16. Qc2 {[%clk 0:01:10]}  c5 {[%clk 0:01:15]} 17. dxc5 {[%clk 0:01:08]}  bxc5 {[%clk 0:01:16]} 18. Bf4 {[%clk 0:00:59]}  Nf5 {[%clk 0:01:08]} 19. Bh2 {[%clk 0:00:57]}  a5 {[%clk 0:00:35]} 20. Nce5 {[%clk 0:00:52]}  Qe7 {[%clk 0:00:30]} 21. Bb5 {[%clk 0:00:51]}  Rec8 {[%clk 0:00:29]} 22. Nc4 {[%clk 0:00:49]}  Rd8 {[%clk 0:00:26]} 23. Qe2 {[%clk 0:00:44]}  Nh4 {[%clk 0:00:25]} 24. Nxh4 {[%clk 0:00:42]}  Qxh4 {[%clk 0:00:26]} 25. Qg4 {[%clk 0:00:39]}  Qe7 {[%clk 0:00:25]} 26. Re1 {[%clk 0:00:33]}  Ba6 {[%clk 0:00:24]} 27. Bxa6 {[%clk 0:00:29]}  Rxa6 {[%clk 0:00:23]} 28. Qe4 {[%clk 0:00:26]}  Qb7 {[%clk 0:00:22]} 29. Bg3 {[%clk 0:00:25]}  Raa8 {[%clk 0:00:21]} 30. Bh4 {[%clk 0:00:25]}  Rd7 {[%clk 0:00:20]} 31. Bg3 {[%clk 0:00:25]}  Ne7 {[%clk 0:00:16]} 32. Qxb7 {[%clk 0:00:24]}  Rxb7 {[%clk 0:00:17]} 33. Bd6 {[%clk 0:00:24]}  Nf5 {[%clk 0:00:12]} 34. Rad1 {[%clk 0:00:24]}  Nxd6 {[%clk 0:00:09]} 35. Rxd6 {[%clk 0:00:23]}  Bf8 {[%clk 0:00:08]} 36. Rd3 {[%clk 0:00:22]}  Kg7 {[%clk 0:00:08]} 37. Red1 {[%clk 0:00:22]}  Raa7 {[%clk 0:00:05]} 38. g4 {[%clk 0:00:22]}  Be7 {[%clk 0:00:06]} 39. Kg2 {[%clk 0:00:22]}  Ra8 {[%clk 0:00:04]} 40. f4 {[%clk 0:00:22]}  Raa7 {[%clk 0:00:04]} 41. Kf3 {[%clk 0:00:22]}  g5 {[%clk 0:00:05]} 42. f5 {[%clk 0:00:20]}  exf5 {[%clk 0:00:06]} 43. gxf5 {[%clk 0:00:20]}  h5 {[%clk 0:00:07]} 44. Rd5 {[%clk 0:00:20]}  Bf6 {[%clk 0:00:07]} 45. R1d2 {[%clk 0:00:19]}  Re7 {[%clk 0:00:08]} 46. Rxc5 {[%clk 0:00:18]}  Re1 {[%clk 0:00:08]} 47. Nd6 {[%clk 0:00:17]}  Rae7 {[%clk 0:00:09]} 48. Rc4 {[%clk 0:00:16]}  R7e3+ {[%clk 0:00:09]} 49. Kg2 {[%clk 0:00:16]}  Be5 {[%clk 0:00:09]} 50. f6+ {[%clk 0:00:15]}  Kg6 {[%clk 0:00:09]} 51. Rc8 {[%clk 0:00:14]}  R3e2+ {[%clk 0:00:06]} 52. Rxe2 {[%clk 0:00:13]}  Rxe2+ {[%clk 0:00:07]} 53. Kf3 {[%clk 0:00:14]}  Rh2 {[%clk 0:00:04]} 54. Rg8+ {[%clk 0:00:14]}  Kxf6 {[%clk 0:00:04]} 55. Ne4+ {[%clk 0:00:14]}  Ke7 {[%clk 0:00:04]} 56. Nxg5 {[%clk 0:00:14]}  f6 {[%clk 0:00:03]} 57. Ne4 {[%clk 0:00:13]}  Rxh3+ {[%clk 0:00:03]} 58. Ke2 {[%clk 0:00:13]}  Rh2+ {[%clk 0:00:04]} 59. Nf2 {[%clk 0:00:14]}  h4 {[%clk 0:00:03]} 60. Kf3 {[%clk 0:00:13]}  Bg3 {[%clk 0:00:04]} 61. Ne4 {[%clk 0:00:13]}  Rxb2 {[%clk 0:00:05]} 62. Nxg3 {[%clk 0:00:14]}  hxg3 {[%clk 0:00:06]} 63. Rxg3 {[%clk 0:00:12]}  Rb3 {[%clk 0:00:06]} 64. Ke4 {[%clk 0:00:12]}  Ra3 {[%clk 0:00:07]} 65. Kf5 {[%clk 0:00:12]}  Rxa4 {[%clk 0:00:07]} 66. Rg7+ {[%clk 0:00:12]}  Kd6 {[%clk 0:00:07]} 67. Ra7 {[%clk 0:00:12]}  Kc5 {[%clk 0:00:07]} 68. Kxf6 {[%clk 0:00:12]}  Kb6 {[%clk 0:00:08]} 69. Ra8 {[%clk 0:00:11]}  Kb7 {[%clk 0:00:08]} 70. Rd8 {[%clk 0:00:11]}  Re4 {[%clk 0:00:08]} 71. Kf5 {[%clk 0:00:11]}  Re3 {[%clk 0:00:07]} 72. c4 {[%clk 0:00:10]}  a4 {[%clk 0:00:08]} 73. Rd5 {[%clk 0:00:09]}  Ka6 {[%clk 0:00:05]} 74. Rd8 {[%clk 0:00:09]}  Ka5 {[%clk 0:00:04]} 75. Ra8+ {[%clk 0:00:08]}  Kb4 {[%clk 0:00:04]} 76. c5 {[%clk 0:00:08]}  Rc3 {[%clk 0:00:04]} 77. Ke4 {[%clk 0:00:09]}  Rxc5 {[%clk 0:00:04]} 78. Kd3 {[%clk 0:00:09]}  Kb3 {[%clk 0:00:04]} 79. Rb8+ {[%clk 0:00:09]}  Ka2 {[%clk 0:00:04]} 80. Kd2 {[%clk 0:00:09]}  a3 {[%clk 0:00:05]} 81. Rb4 {[%clk 0:00:08]}  Rc8 {[%clk 0:00:05]} 82. Kd1 {[%clk 0:00:08]}  Rc3 {[%clk 0:00:05]} 83. Kd2 {[%clk 0:00:06]}  Rb3 {[%clk 0:00:06]} 84. Rc4 {[%clk 0:00:06]}  Rb2+ {[%clk 0:00:05]} 85. Kc1 {[%clk 0:00:05]}  Kb3 {[%clk 0:00:04]} 86. Rc8 {[%clk 0:00:05]}  Rg2 {[%clk 0:00:02]} 87. Rb8+ {[%clk 0:00:05]}  Ka2 {[%clk 0:00:03]} 88. Rb7 {[%clk 0:00:05]}  Rg1+ {[%clk 0:00:04]} 89. Kc2 {[%clk 0:00:05]}  Rg2+ {[%clk 0:00:05]} 90. Kc1 {[%clk 0:00:06]}  Rb2 {[%clk 0:00:06]} 91. Rc7 {[%clk 0:00:05]}  Rb8 {[%clk 0:00:06]} 92. Ra7 {[%clk 0:00:05]}  Rc8+ {[%clk 0:00:06]} 93. Kd2 {[%clk 0:00:05]}  Rc4 {[%clk 0:00:07]} 94. Kd3 {[%clk 0:00:04]}  Rb4 {[%clk 0:00:05]} 95. Kc3 {[%clk 0:00:04]}  Rb2 {[%clk 0:00:05]} 96. Ra8 {[%clk 0:00:04]}  Rg2 {[%clk 0:00:06]} 97. Ra7 {[%clk 0:00:03]}  Rg6 {[%clk 0:00:05]} 98. Kc2 {[%clk 0:00:03]}  Rc6+ {[%clk 0:00:06]} 99. Kd1 {[%clk 0:00:03]}  Rc4 {[%clk 0:00:03]} 100. Kd2 {[%clk 0:00:03]}  Kb3 {[%clk 0:00:04]} 101. Rb7+ {[%clk 0:00:02]}  Ka2 {[%clk 0:00:03]} 102. Ra7 {[%clk 0:00:02]}  Rc6 {[%clk 0:00:04]} 103. Kd1 {[%clk 0:00:02]}  Rc3 {[%clk 0:00:04]} 104. Kd2 {[%clk 0:00:02]}  Rh3 {[%clk 0:00:04]} 105. Kc2 {[%clk 0:00:02]}  Rg3 {[%clk 0:00:04]} 106. Kc1 {[%clk 0:00:03]}  Rc3+ {[%clk 0:00:04]} 107. Kd2 {[%clk 0:00:03]}  Kb2 {[%clk 0:00:05]} 108. Ra6 {[%clk 0:00:02]}  Rb3 {[%clk 0:00:04]} 0-1


[Site "https://www.chess.com"]